[Event "Early-Titled-Tuesday-Blitz-October-24-2023"]
[Site "Chess.com"]
[Date "2023.10.24"]
[Round "10"]
[White "HeroRubiksCube"]
[Black "OK97"]
[Result "0-1"]
[WhiteElo "2554"]
[BlackElo "2759"]
[TimeControl "180+1"]
[EndTime "9:53:02 PDT"]
[Termination "OK97 won by resignation"]

1. e4 {[%clk 0:03:00.9]} 1... c5 {[%clk 0:02:57.4]} 2. Nc3 {[%clk 0:03:00.1]}
2... Nc6 {[%clk 0:02:56.7]} 3. f4 {[%clk 0:02:59.5]} 3... e6 {[%clk 0:02:56.4]}
4. Nf3 {[%clk 0:02:57.7]} 4... d5 {[%clk 0:02:54.3]} 5. Bb5 {[%clk 0:02:57.5]}
5... Ne7 {[%clk 0:02:54.3]} 6. exd5 {[%clk 0:02:54.8]} 6... exd5 {[%clk
0:02:54.4]} 7. O-O {[%clk 0:02:50.7]} 7... a6 {[%clk 0:02:51.7]} 8. Bxc6+ {[%clk
0:02:50.3]} 8... Nxc6 {[%clk 0:02:52.6]} 9. Re1+ {[%clk 0:02:45.6]} 9... Be7
{[%clk 0:02:52.6]} 10. d4 {[%clk 0:02:45.7]} 10... O-O {[%clk 0:02:44]} 11. Be3
{[%clk 0:02:41.5]} 11... Bg4 {[%clk 0:02:39.1]} 12. Bf2 {[%clk 0:01:56]} 12...
cxd4 {[%clk 0:02:15.9]} 13. Ne2 {[%clk 0:01:55.3]} 13... Bxf3 {[%clk 0:02:14.8]}
14. gxf3 {[%clk 0:01:56.2]} 14... Bd6 {[%clk 0:02:05.7]} 15. Bxd4 {[%clk
0:01:49.2]} 15... Re8 {[%clk 0:01:59.1]} 16. c3 {[%clk 0:01:44.4]} 16... Qd7
{[%clk 0:01:46.2]} 17. Kh1 {[%clk 0:01:36.6]} 17... Qf5 {[%clk 0:01:37.1]} 18.
Rg1 {[%clk 0:01:30.8]} 18... f6 {[%clk 0:01:37.3]} 19. Qd2 {[%clk 0:01:17.7]}
19... Re6 {[%clk 0:01:27.2]} 20. Ng3 {[%clk 0:01:16.5]} 20... Qxf4 {[%clk
0:01:26.4]} 21. Qxf4 {[%clk 0:01:16.3]} 21... Bxf4 {[%clk 0:01:26.6]} 22. Nh5
{[%clk 0:01:16.8]} 22... Bg5 {[%clk 0:01:10.4]} 23. f4 {[%clk 0:01:00.8]} 23...
Nxd4 {[%clk 0:01:09.8]} 24. cxd4 {[%clk 0:00:54.5]} 24... Bh6 {[%clk 0:01:07.2]}
25. f5 {[%clk 0:00:53.4]} 25... Rc6 {[%clk 0:01:03.6]} 26. Rae1 {[%clk
0:00:27.9]} 26... Kf8 {[%clk 0:01:00.1]} 27. Re2 {[%clk 0:00:23.1]} 27... Rac8
{[%clk 0:00:52.3]} 28. Rge1 {[%clk 0:00:23]} 28... Rc1 {[%clk 0:00:43.2]} 29.
Rxc1 {[%clk 0:00:23.5]} 29... Rxc1+ {[%clk 0:00:42.8]} 30. Kg2 {[%clk
0:00:24.4]} 30... Kf7 {[%clk 0:00:39.5]} 31. b3 {[%clk 0:00:22.4]} 31... Rd1
{[%clk 0:00:37.5]} 32. Rc2 {[%clk 0:00:20.8]} 32... Rd2+ {[%clk 0:00:31]} 33.
Rxd2 {[%clk 0:00:21.3]} 33... Bxd2 {[%clk 0:00:31.6]} 34. Kf3 {[%clk 0:00:22.2]}
34... g6 {[%clk 0:00:28.5]} 35. Ng3 {[%clk 0:00:22]} 35... Be1 {[%clk
0:00:22.6]} 36. Ne2 {[%clk 0:00:22.3]} 36... Bd2 {[%clk 0:00:18.2]} 37. Ng3
{[%clk 0:00:18.9]} 37... Bc1 {[%clk 0:00:16.9]} 38. Ke2 {[%clk 0:00:17]} 38...
Bf4 {[%clk 0:00:15.1]} 39. fxg6+ {[%clk 0:00:15.7]} 39... hxg6 {[%clk
0:00:15.1]} 40. Nf1 {[%clk 0:00:15.6]} 40... Ke6 {[%clk 0:00:15.2]} 41. Kf3
{[%clk 0:00:16.1]} 41... Kf5 {[%clk 0:00:15.1]} 42. h4 {[%clk 0:00:15.9]} 42...
g5 {[%clk 0:00:14.8]} 43. hxg5 {[%clk 0:00:13.2]} 43... fxg5 {[%clk 0:00:15.7]}
44. a4 {[%clk 0:00:13.8]} 44... g4+ {[%clk 0:00:16.1]} 45. Ke2 {[%clk
0:00:14.4]} 45... Ke4 {[%clk 0:00:16.4]} 0-1

[Event "Early-Titled-Tuesday-Blitz-October-24-2023"]
[Site "Chess.com"]
[Date "2023.10.24"]
[Round "10"]
[White "Legendinunknown"]
[Black "Doomfist26"]
[Result "1-0"]
[WhiteElo "2814"]
[BlackElo "2656"]
[TimeControl "180+1"]
[EndTime "9:53:05 PDT"]
[Termination "Legendinunknown won on time"]

1. e4 {[%clk 0:03:00.9]} 1... c5 {[%clk 0:02:55.9]} 2. Nf3 {[%clk 0:02:57.5]}
2... d6 {[%clk 0:02:51.5]} 3. c3 {[%clk 0:02:57.1]} 3... Nf6 {[%clk 0:02:51.5]}
4. Bd3 {[%clk 0:02:55.6]} 4... Nc6 {[%clk 0:02:44.5]} 5. Bc2 {[%clk 0:02:51.6]}
5... g6 {[%clk 0:02:41.2]} 6. h3 {[%clk 0:02:48.7]} 6... Bg7 {[%clk 0:02:41.4]}
7. O-O {[%clk 0:02:47.3]} 7... O-O {[%clk 0:02:41.4]} 8. d4 {[%clk 0:02:47]}
8... cxd4 {[%clk 0:02:41.8]} 9. cxd4 {[%clk 0:02:47.4]} 9... Nb4 {[%clk
0:02:40]} 10. Re1 {[%clk 0:02:46.5]} 10... Nxc2 {[%clk 0:02:39.8]} 11. Qxc2
{[%clk 0:02:47.4]} 11... a6 {[%clk 0:02:37.3]} 12. a4 {[%clk 0:02:46]} 12... Bd7
{[%clk 0:02:22.6]} 13. Nc3 {[%clk 0:02:44.2]} 13... Rc8 {[%clk 0:02:22.5]} 14.
Bg5 {[%clk 0:02:40.2]} 14... b5 {[%clk 0:02:21.9]} 15. axb5 {[%clk 0:02:40]}
15... axb5 {[%clk 0:02:11.6]} 16. Qd2 {[%clk 0:02:40]} 16... Bc6 {[%clk
0:01:59.9]} 17. b4 {[%clk 0:02:27.5]} 17... Qd7 {[%clk 0:01:35.9]} 18. Qe3
{[%clk 0:02:11.4]} 18... e6 {[%clk 0:01:27.9]} 19. d5 {[%clk 0:01:27.7]} 19...
exd5 {[%clk 0:01:24.6]} 20. Ra7 {[%clk 0:01:27.1]} 20... d4 {[%clk 0:01:04.4]}
21. Qxd4 {[%clk 0:01:16.3]} 21... Ne8 {[%clk 0:01:04.6]} 22. Qe3 {[%clk
0:01:05.3]} 22... Qe6 {[%clk 0:00:56]} 23. Nd5 {[%clk 0:01:00.1]} 23... Bxd5
{[%clk 0:00:51.9]} 24. exd5 {[%clk 0:01:01]} 24... Qxe3 {[%clk 0:00:50.4]} 25.
Rxe3 {[%clk 0:00:58.5]} 25... Nf6 {[%clk 0:00:50.9]} 26. Bxf6 {[%clk 0:00:53.4]}
26... Bxf6 {[%clk 0:00:51.8]} 27. Rb7 {[%clk 0:00:50.5]} 27... Rb8 {[%clk
0:00:45.2]} 28. Ra7 {[%clk 0:00:50.5]} 28... Rfc8 {[%clk 0:00:44.3]} 29. Rea3
{[%clk 0:00:46.5]} 29... Rc4 {[%clk 0:00:38.8]} 30. Rd7 {[%clk 0:00:45.2]} 30...
Rxb4 {[%clk 0:00:34]} 31. Raa7 {[%clk 0:00:43.3]} 31... Rf8 {[%clk 0:00:30.4]}
32. Rxd6 {[%clk 0:00:42.7]} 32... Rb1+ {[%clk 0:00:30]} 33. Kh2 {[%clk
0:00:42.1]} 33... Bc3 {[%clk 0:00:25.6]} 34. Rb7 {[%clk 0:00:39]} 34... b4
{[%clk 0:00:25.9]} 35. Rc6 {[%clk 0:00:39.4]} 35... Bg7 {[%clk 0:00:16.4]} 36.
d6 {[%clk 0:00:35.3]} 36... Rd8 {[%clk 0:00:13]} 37. Rcc7 {[%clk 0:00:30]} 37...
Bf8 {[%clk 0:00:09.3]} 38. Rxf7 {[%clk 0:00:23.9]} 38... Rxd6 {[%clk 0:00:06.5]}
39. g3 {[%clk 0:00:19]} 39... Rd3 {[%clk 0:00:04.9]} 40. Ne5 {[%clk 0:00:17.8]}
40... Rd5 {[%clk 0:00:02.3]} 41. Ng4 {[%clk 0:00:17.9]} 1-0

[Event "Early-Titled-Tuesday-Blitz-October-24-2023"]
[Site "Chess.com"]
[Date "2023.10.24"]
[Round "10"]
[White "topin8"]
[Black "InitiatingASC"]
[Result "1-0"]
[WhiteElo "2449"]
[BlackElo "2326"]
[TimeControl "180+1"]
[EndTime "9:53:05 PDT"]
[Termination "topin8 won on time"]

1. Nf3 {[%clk 0:03:00.9]} 1... Nf6 {[%clk 0:02:59]} 2. g3 {[%clk 0:03:01.1]}
2... g6 {[%clk 0:02:59.1]} 3. Bg2 {[%clk 0:03:01.5]} 3... Bg7 {[%clk 0:02:59.9]}
4. O-O {[%clk 0:03:02.4]} 4... O-O {[%clk 0:03:00.3]} 5. c4 {[%clk 0:03:03]}
5... c5 {[%clk 0:02:58]} 6. Nc3 {[%clk 0:03:03.2]} 6... Nc6 {[%clk 0:02:58.1]}
7. d4 {[%clk 0:02:59.6]} 7... cxd4 {[%clk 0:02:57.9]} 8. Nxd4 {[%clk 0:03:00.5]}
8... Qb6 {[%clk 0:02:57.3]} 9. Nc2 {[%clk 0:02:56.2]} 9... d6 {[%clk 0:02:56.3]}
10. b3 {[%clk 0:02:54.8]} 10... Bg4 {[%clk 0:02:52.8]} 11. h3 {[%clk 0:02:45.7]}
11... Be6 {[%clk 0:02:49.4]} 12. Bb2 {[%clk 0:02:29.1]} 12... Rfe8 {[%clk
0:02:45.9]} 13. Qd2 {[%clk 0:02:19.4]} 13... Rad8 {[%clk 0:02:32.9]} 14. e4
{[%clk 0:02:16.5]} 14... Qa5 {[%clk 0:02:23.4]} 15. Rad1 {[%clk 0:02:00]} 15...
Qh5 {[%clk 0:02:17.4]} 16. h4 {[%clk 0:01:21.7]} 16... Ne5 {[%clk 0:02:13.2]}
17. f4 {[%clk 0:01:18.1]} 17... Neg4 {[%clk 0:02:03.1]} 18. Qe2 {[%clk
0:01:12.9]} 18... Qc5+ {[%clk 0:02:01.5]} 19. Nd4 {[%clk 0:01:07.4]} 19... Nh5
{[%clk 0:01:54]} 20. Na4 {[%clk 0:01:05.9]} 20... Nxg3 {[%clk 0:01:45.6]} 21.
Qf3 {[%clk 0:01:03.9]} 21... Bxd4+ {[%clk 0:00:58.9]} 22. Bxd4 {[%clk
0:01:04.8]} 22... Qa3 {[%clk 0:00:53.9]} 23. Qxg3 {[%clk 0:01:02.1]} 23... h5
{[%clk 0:00:48.3]} 24. Bxa7 {[%clk 0:00:50.8]} 24... Qxa2 {[%clk 0:00:47.6]} 25.
Bd4 {[%clk 0:00:50.1]} 25... b5 {[%clk 0:00:46.6]} 26. Ra1 {[%clk 0:00:34.9]}
26... Qd2 {[%clk 0:00:44.2]} 27. Rfd1 {[%clk 0:00:29.4]} 27... Qc2 {[%clk
0:00:29.7]} 28. Rdc1 {[%clk 0:00:24.3]} 28... Qd2 {[%clk 0:00:23.8]} 29. Bc3
{[%clk 0:00:22.7]} 29... Qe2 {[%clk 0:00:16.9]} 30. Re1 {[%clk 0:00:21.4]} 30...
Qc2 {[%clk 0:00:16.2]} 31. Rac1 {[%clk 0:00:16.6]} 31... Qxb3 {[%clk 0:00:16.3]}
32. Nb6 {[%clk 0:00:08.7]} 32... bxc4 {[%clk 0:00:14.5]} 33. Rb1 {[%clk
0:00:04.6]} 33... Qa2 {[%clk 0:00:11.4]} 34. Ra1 {[%clk 0:00:04.3]} 34... Qc2
{[%clk 0:00:11.4]} 35. Rec1 {[%clk 0:00:04.7]} 35... Qd3 {[%clk 0:00:11.4]} 36.
Qxd3 {[%clk 0:00:04.7]} 36... cxd3 {[%clk 0:00:11.7]} 37. Bf1 {[%clk 0:00:05.3]}
37... Rb8 {[%clk 0:00:10.2]} 38. Bd4 {[%clk 0:00:05.6]} 38... d2 {[%clk
0:00:09.1]} 39. Rd1 {[%clk 0:00:05.8]} 39... Bb3 {[%clk 0:00:02.1]} 40. Rxd2
{[%clk 0:00:05.7]} 1-0

[Event "Early-Titled-Tuesday-Blitz-October-24-2023"]
[Site "Chess.com"]
[Date "2023.10.24"]
[Round "10"]
[White "matenitian"]
[Black "Nick12772"]
[Result "1-0"]
[WhiteElo "2559"]
[BlackElo "2368"]
[TimeControl "180+1"]
[EndTime "9:53:07 PDT"]
[Termination "matenitian won by checkmate"]

1. e4 {[%clk 0:03:00.9]} 1... e6 {[%clk 0:03:00.1]} 2. d4 {[%clk 0:03:00.2]}
2... d5 {[%clk 0:03:01]} 3. Nc3 {[%clk 0:03:00.6]} 3... Bb4 {[%clk 0:03:00.9]}
4. e5 {[%clk 0:03:01]} 4... c5 {[%clk 0:03:01.2]} 5. a3 {[%clk 0:03:00.7]} 5...
Bxc3+ {[%clk 0:03:01.8]} 6. bxc3 {[%clk 0:03:01.2]} 6... Ne7 {[%clk 0:03:02.5]}
7. Nf3 {[%clk 0:03:00.1]} 7... b6 {[%clk 0:03:01.5]} 8. Bb5+ {[%clk 0:03:00.5]}
8... Bd7 {[%clk 0:03:01.2]} 9. Bd3 {[%clk 0:03:01.2]} 9... Nbc6 {[%clk 0:02:58]}
10. O-O {[%clk 0:02:59.9]} 10... h6 {[%clk 0:02:55.2]} 11. Be3 {[%clk
0:02:54.4]} 11... c4 {[%clk 0:02:54.4]} 12. Be2 {[%clk 0:02:54]} 12... Nf5
{[%clk 0:02:54.6]} 13. Bc1 {[%clk 0:02:44.6]} 13... Nh4 {[%clk 0:02:46]} 14. a4
{[%clk 0:02:42.3]} 14... Nxf3+ {[%clk 0:02:45.6]} 15. Bxf3 {[%clk 0:02:40]}
15... O-O {[%clk 0:02:43.1]} 16. Ba3 {[%clk 0:02:35.9]} 16... Re8 {[%clk
0:02:41.7]} 17. Bh5 {[%clk 0:02:33.5]} 17... Ne7 {[%clk 0:02:33.5]} 18. f4
{[%clk 0:02:28.1]} 18... Nf5 {[%clk 0:02:32.4]} 19. Qe2 {[%clk 0:02:12.3]} 19...
Bxa4 {[%clk 0:02:23.6]} 20. g4 {[%clk 0:01:59]} 20... Bxc2 {[%clk 0:02:11]} 21.
gxf5 {[%clk 0:01:44.9]} 21... Bd3 {[%clk 0:02:10.9]} 22. Qg4 {[%clk 0:01:24.5]}
22... exf5 {[%clk 0:02:00.7]} 23. Qh3 {[%clk 0:01:09.3]} 23... Bxf1 {[%clk
0:01:57.8]} 24. Rxf1 {[%clk 0:00:58.4]} 24... Qd7 {[%clk 0:01:58.2]} 25. Kh1
{[%clk 0:00:53.9]} 25... Qe6 {[%clk 0:01:51]} 26. Bf3 {[%clk 0:00:53.8]} 26...
a5 {[%clk 0:01:45.5]} 27. Qg2 {[%clk 0:00:54]} 27... Red8 {[%clk 0:01:37.8]} 28.
Bd6 {[%clk 0:00:54.4]} 28... Rac8 {[%clk 0:01:22.3]} 29. Bxd5 {[%clk 0:00:51.7]}
29... Rxd6 {[%clk 0:00:52.9]} 30. Bxe6 {[%clk 0:00:45.3]} 30... Rxe6 {[%clk
0:00:53.8]} 31. d5 {[%clk 0:00:45.2]} 31... Ree8 {[%clk 0:00:51.7]} 32. d6
{[%clk 0:00:41.9]} 32... Red8 {[%clk 0:00:51.2]} 33. Rg1 {[%clk 0:00:42.2]}
33... g6 {[%clk 0:00:51.2]} 34. Qd5 {[%clk 0:00:36.3]} 34... Rc5 {[%clk
0:00:49.6]} 35. Qb7 {[%clk 0:00:31.6]} 35... b5 {[%clk 0:00:44.6]} 36. e6 {[%clk
0:00:21.9]} 36... Rf8 {[%clk 0:00:35.9]} 37. exf7+ {[%clk 0:00:17]} 37... Kg7
{[%clk 0:00:33.2]} 38. d7 {[%clk 0:00:13.4]} 38... b4 {[%clk 0:00:33.2]} 39.
cxb4 {[%clk 0:00:12.4]} 39... axb4 {[%clk 0:00:34.1]} 40. Qxb4 {[%clk 0:00:12]}
40... Rd5 {[%clk 0:00:32]} 41. Qe7 {[%clk 0:00:10.9]} 41... Rxf7 {[%clk
0:00:26.7]} 42. d8=Q {[%clk 0:00:09.5]} 42... Rxd8 {[%clk 0:00:24.6]} 43. Qxd8
{[%clk 0:00:10.4]} 43... Kh7 {[%clk 0:00:20.8]} 44. Qd4 {[%clk 0:00:09.7]} 44...
Rc7 {[%clk 0:00:18.9]} 45. Qf6 {[%clk 0:00:09.6]} 45... Rg7 {[%clk 0:00:17.4]}
46. Re1 {[%clk 0:00:09.5]} 46... h5 {[%clk 0:00:15.3]} 47. Re7 {[%clk
0:00:09.2]} 47... Rxe7 {[%clk 0:00:15.5]} 48. Qxe7+ {[%clk 0:00:10.1]} 48... Kh6
{[%clk 0:00:16.4]} 49. Qf6 {[%clk 0:00:09.5]} 49... Kh7 {[%clk 0:00:16]} 50. Qd4
{[%clk 0:00:09.9]} 50... c3 {[%clk 0:00:15.9]} 51. Qxc3 {[%clk 0:00:10.1]} 51...
Kh6 {[%clk 0:00:16.8]} 52. Qh8# {[%clk 0:00:09.7]} 1-0

[Event "Early-Titled-Tuesday-Blitz-October-24-2023"]
[Site "Chess.com"]
[Date "2023.10.24"]
[Round "10"]
[White "Noki102"]
[Black "fen_fire"]
[Result "1/2-1/2"]
[WhiteElo "2435"]
[BlackElo "2538"]
[TimeControl "180+1"]
[EndTime "9:53:08 PDT"]
[Termination "Game drawn by repetition"]

1. d4 {[%clk 0:02:59.3]} 1... Nf6 {[%clk 0:02:31.7]} 2. Nc3 {[%clk 0:02:57.1]}
2... g6 {[%clk 0:02:32.6]} 3. e4 {[%clk 0:02:57.2]} 3... d6 {[%clk 0:02:32.1]}
4. f4 {[%clk 0:02:53.2]} 4... Bg7 {[%clk 0:02:14.7]} 5. Nf3 {[%clk 0:02:48.5]}
5... O-O {[%clk 0:02:14.3]} 6. Bc4 {[%clk 0:02:45.3]} 6... Nxe4 {[%clk
0:02:08.1]} 7. Bxf7+ {[%clk 0:02:45.6]} 7... Rxf7 {[%clk 0:02:08]} 8. Nxe4
{[%clk 0:02:44.7]} 8... Bg4 {[%clk 0:01:59.9]} 9. Neg5 {[%clk 0:02:39.2]} 9...
Rf6 {[%clk 0:01:47.2]} 10. Qe2 {[%clk 0:01:58.2]} 10... Nc6 {[%clk 0:01:35.7]}
11. h3 {[%clk 0:01:48]} 11... Bxf3 {[%clk 0:01:33]} 12. Nxf3 {[%clk 0:01:46.2]}
12... Qd7 {[%clk 0:01:28.8]} 13. O-O {[%clk 0:01:45.4]} 13... Raf8 {[%clk
0:01:28.1]} 14. c3 {[%clk 0:01:45.4]} 14... e5 {[%clk 0:01:19.1]} 15. dxe5
{[%clk 0:01:40.3]} 15... dxe5 {[%clk 0:01:19.2]} 16. fxe5 {[%clk 0:01:36]} 16...
Nxe5 {[%clk 0:01:19.1]} 17. Nh2 {[%clk 0:01:13]} 17... Rxf1+ {[%clk 0:01:10.3]}
18. Nxf1 {[%clk 0:01:13.9]} 18... Qf7 {[%clk 0:00:54.9]} 19. Be3 {[%clk
0:01:08.6]} 19... b6 {[%clk 0:00:52.1]} 20. Bd4 {[%clk 0:01:06.1]} 20... Nc4
{[%clk 0:00:49.3]} 21. Bxg7 {[%clk 0:01:03]} 21... Kxg7 {[%clk 0:00:50.2]} 22.
b3 {[%clk 0:01:00.4]} 22... Nd6 {[%clk 0:00:48.2]} 23. Re1 {[%clk 0:00:57.6]}
23... Re8 {[%clk 0:00:47.8]} 24. Qf2 {[%clk 0:00:53.5]} 24... Qxf2+ {[%clk
0:00:42.9]} 25. Kxf2 {[%clk 0:00:52.8]} 25... Ne4+ {[%clk 0:00:32.3]} 26. Kf3
{[%clk 0:00:51.8]} 26... Nd2+ {[%clk 0:00:25.1]} 27. Kf2 {[%clk 0:00:51.5]}
27... Rxe1 {[%clk 0:00:23.5]} 28. Kxe1 {[%clk 0:00:50.5]} 28... Nxf1 {[%clk
0:00:24.4]} 29. Kxf1 {[%clk 0:00:50.8]} 29... Kf6 {[%clk 0:00:25.2]} 30. Kf2
{[%clk 0:00:48.8]} 30... Ke5 {[%clk 0:00:23.5]} 31. Ke3 {[%clk 0:00:48.6]} 31...
h6 {[%clk 0:00:22.4]} 32. g3 {[%clk 0:00:47.5]} 32... c6 {[%clk 0:00:21.8]} 33.
a3 {[%clk 0:00:39.2]} 33... a6 {[%clk 0:00:21.8]} 34. Kd3 {[%clk 0:00:35.8]}
34... h5 {[%clk 0:00:17.1]} 35. Ke3 {[%clk 0:00:31.9]} 35... g5 {[%clk
0:00:17.3]} 36. Kf3 {[%clk 0:00:25]} 36... c5 {[%clk 0:00:16.6]} 37. Ke3 {[%clk
0:00:24.1]} 37... b5 {[%clk 0:00:16.1]} 38. a4 {[%clk 0:00:19.2]} 38... g4
{[%clk 0:00:10.2]} 39. hxg4 {[%clk 0:00:15.8]} 39... hxg4 {[%clk 0:00:11.1]} 40.
a5 {[%clk 0:00:14.6]} 40... b4 {[%clk 0:00:07.7]} 41. cxb4 {[%clk 0:00:10.6]}
41... cxb4 {[%clk 0:00:08.6]} 42. Kd3 {[%clk 0:00:10.9]} 42... Kd5 {[%clk
0:00:09]} 43. Ke3 {[%clk 0:00:11]} 43... Ke5 {[%clk 0:00:09.2]} 44. Kd3 {[%clk
0:00:11.3]} 44... Kd5 {[%clk 0:00:09]} 45. Ke3 {[%clk 0:00:11.8]} 45... Ke5
{[%clk 0:00:07.2]} 1/2-1/2

[Event "Early-Titled-Tuesday-Blitz-October-24-2023"]
[Site "Chess.com"]
[Date "2023.10.24"]
[Round "10"]
[White "Akylbek2021"]
[Black "DonCiao"]
[Result "1-0"]
[WhiteElo "2247"]
[BlackElo "2125"]
[TimeControl "180+1"]
[EndTime "9:53:09 PDT"]
[Termination "Akylbek2021 won by checkmate"]

1. c4 {[%clk 0:02:50.6]} 1... Nf6 {[%clk 0:02:59.6]} 2. Nf3 {[%clk 0:02:49.9]}
2... g6 {[%clk 0:02:58]} 3. Nc3 {[%clk 0:02:49.5]} 3... d5 {[%clk 0:02:56.2]} 4.
cxd5 {[%clk 0:02:46.8]} 4... Nxd5 {[%clk 0:02:56.2]} 5. d4 {[%clk 0:02:46.9]}
5... Bg7 {[%clk 0:02:55.1]} 6. e4 {[%clk 0:02:47.1]} 6... Nxc3 {[%clk
0:02:55.2]} 7. bxc3 {[%clk 0:02:48]} 7... c5 {[%clk 0:02:54.9]} 8. Rb1 {[%clk
0:02:47.3]} 8... O-O {[%clk 0:02:46.4]} 9. Be2 {[%clk 0:02:45.1]} 9... Nc6
{[%clk 0:02:46.1]} 10. d5 {[%clk 0:02:43.6]} 10... Ne5 {[%clk 0:02:46.2]} 11.
Qd2 {[%clk 0:02:39.2]} 11... Nxf3+ {[%clk 0:02:44.3]} 12. Bxf3 {[%clk
0:02:38.7]} 12... Qa5 {[%clk 0:02:41.7]} 13. Rb3 {[%clk 0:02:34.3]} 13... c4
{[%clk 0:02:39.5]} 14. Ra3 {[%clk 0:02:29.7]} 14... Qc7 {[%clk 0:02:29.8]} 15.
h4 {[%clk 0:01:39.7]} 15... h5 {[%clk 0:02:26.5]} 16. Be2 {[%clk 0:01:24.9]}
16... b5 {[%clk 0:02:22.8]} 17. Qf4 {[%clk 0:01:14.1]} 17... Be5 {[%clk
0:02:17.6]} 18. Qg5 {[%clk 0:01:08.6]} 18... Bf6 {[%clk 0:01:56.2]} 19. Qe3
{[%clk 0:01:08.4]} 19... a5 {[%clk 0:01:49.8]} 20. g4 {[%clk 0:01:00.1]} 20...
hxg4 {[%clk 0:01:20.1]} 21. h5 {[%clk 0:00:59.1]} 21... g5 {[%clk 0:01:19.6]}
22. Rg1 {[%clk 0:00:39.3]} 22... Kh7 {[%clk 0:01:16.3]} 23. Bxg4 {[%clk
0:00:37.5]} 23... Bxg4 {[%clk 0:01:15.9]} 24. Rxg4 {[%clk 0:00:38.4]} 24... b4
{[%clk 0:01:10.2]} 25. Ra4 {[%clk 0:00:09.9]} 25... Qh2 {[%clk 0:01:06.9]} 26.
cxb4 {[%clk 0:00:06.3]} 26... axb4 {[%clk 0:00:56.1]} 27. Rxb4 {[%clk 0:00:04]}
27... Rxa2 {[%clk 0:00:53.7]} 28. f3 {[%clk 0:00:02.1]} 28... Qh1+ {[%clk
0:00:49.1]} 29. Rg1 {[%clk 0:00:02.6]} 29... Qh4+ {[%clk 0:00:48.9]} 30. Kd1
{[%clk 0:00:02.3]} 30... c3 {[%clk 0:00:40.3]} 31. e5 {[%clk 0:00:02.4]} 31...
Qxb4 {[%clk 0:00:38.8]} 32. exf6 {[%clk 0:00:02.6]} 32... exf6 {[%clk
0:00:32.4]} 33. Qd3+ {[%clk 0:00:02.4]} 33... Kh6 {[%clk 0:00:30.8]} 34. d6
{[%clk 0:00:01.8]} 34... Rd8 {[%clk 0:00:27]} 35. Qf5 {[%clk 0:00:01.8]} 35...
Rxd6+ {[%clk 0:00:26.2]} 36. Ke1 {[%clk 0:00:01.8]} 36... c2+ {[%clk 0:00:23.1]}
37. Kf1 {[%clk 0:00:02]} 37... Qc4+ {[%clk 0:00:20.8]} 38. Kg2 {[%clk
0:00:02.4]} 38... Qe2+ {[%clk 0:00:19.9]} 39. Kh1 {[%clk 0:00:02.5]} 39... Qd1
{[%clk 0:00:15.4]} 40. Bxg5+ {[%clk 0:00:01.6]} 40... fxg5 {[%clk 0:00:13.6]}
41. Qxg5+ {[%clk 0:00:02.5]} 41... Kh7 {[%clk 0:00:10.9]} 42. Qg7# {[%clk
0:00:03.4]} 1-0

[Event "Early-Titled-Tuesday-Blitz-October-24-2023"]
[Site "Chess.com"]
[Date "2023.10.24"]
[Round "10"]
[White "balachess2006"]
[Black "esrosenberg"]
[Result "1-0"]
[WhiteElo "2574"]
[BlackElo "2451"]
[TimeControl "180+1"]
[EndTime "9:53:13 PDT"]
[Termination "balachess2006 won on time"]

1. Nf3 {[%clk 0:03:00.9]} 1... d5 {[%clk 0:02:59.7]} 2. d4 {[%clk 0:03:00.7]}
2... Bf5 {[%clk 0:02:59]} 3. c4 {[%clk 0:02:56.4]} 3... e6 {[%clk 0:02:58.8]} 4.
Qb3 {[%clk 0:02:56.4]} 4... Nc6 {[%clk 0:02:58.7]} 5. Bg5 {[%clk 0:02:49.5]}
5... Nf6 {[%clk 0:02:43.1]} 6. Nc3 {[%clk 0:02:48]} 6... Na5 {[%clk 0:02:30.4]}
7. Qa4+ {[%clk 0:02:46.6]} 7... c6 {[%clk 0:02:31.1]} 8. cxd5 {[%clk 0:02:42]}
8... exd5 {[%clk 0:02:31]} 9. Bxf6 {[%clk 0:02:40.6]} 9... gxf6 {[%clk
0:02:30.9]} 10. e3 {[%clk 0:02:40.9]} 10... Be7 {[%clk 0:02:17.8]} 11. b4 {[%clk
0:02:19.2]} 11... Nc4 {[%clk 0:02:16.9]} 12. Bxc4 {[%clk 0:02:19.7]} 12... dxc4
{[%clk 0:02:17.2]} 13. b5 {[%clk 0:02:20.6]} 13... Bd3 {[%clk 0:02:12.7]} 14.
bxc6 {[%clk 0:02:19.4]} 14... O-O {[%clk 0:02:13.4]} 15. Nd2 {[%clk 0:02:00.5]}
15... bxc6 {[%clk 0:02:10.5]} 16. Nxc4 {[%clk 0:01:59.8]} 16... Rb8 {[%clk
0:02:06.9]} 17. Nd2 {[%clk 0:01:13.7]} 17... Rb2 {[%clk 0:01:56.3]} 18. Nd1
{[%clk 0:01:03.6]} 18... Rxd2 {[%clk 0:01:47.1]} 19. Kxd2 {[%clk 0:01:04.5]}
19... Bb5 {[%clk 0:01:47.5]} 20. Qb3 {[%clk 0:00:59.1]} 20... Qa5+ {[%clk
0:01:43.9]} 21. Nc3 {[%clk 0:00:59.3]} 21... Rb8 {[%clk 0:01:31.2]} 22. Rhb1
{[%clk 0:00:56.2]} 22... Rb6 {[%clk 0:01:28.1]} 23. Qc2 {[%clk 0:00:55.5]} 23...
Ba3 {[%clk 0:01:14.7]} 24. Rb3 {[%clk 0:00:54.1]} 24... Bf8 {[%clk 0:00:58.2]}
25. a4 {[%clk 0:00:51.1]} 25... Bc4 {[%clk 0:00:42.9]} 26. Rxb6 {[%clk 0:00:51]}
26... axb6 {[%clk 0:00:43.8]} 27. Rb1 {[%clk 0:00:50.3]} 27... Bb4 {[%clk
0:00:42.9]} 28. Qb2 {[%clk 0:00:49.7]} 28... c5 {[%clk 0:00:43.1]} 29. dxc5
{[%clk 0:00:50.6]} 29... bxc5 {[%clk 0:00:43.4]} 30. Qc2 {[%clk 0:00:44.7]}
30... Qd8+ {[%clk 0:00:41.2]} 31. Kc1 {[%clk 0:00:44.1]} 31... Ba3+ {[%clk
0:00:39.6]} 32. Rb2 {[%clk 0:00:43.6]} 32... Bd3 {[%clk 0:00:17.6]} 33. Qb3
{[%clk 0:00:42.1]} 33... Bxb2+ {[%clk 0:00:18]} 34. Qxb2 {[%clk 0:00:43]} 34...
c4 {[%clk 0:00:18.7]} 35. Qb4 {[%clk 0:00:34.8]} 35... Qc7 {[%clk 0:00:13.8]}
36. g3 {[%clk 0:00:34.9]} 36... Qc6 {[%clk 0:00:12.2]} 37. Kd2 {[%clk
0:00:24.6]} 37... Qg2 {[%clk 0:00:11.7]} 38. Qb8+ {[%clk 0:00:23.1]} 38... Kg7
{[%clk 0:00:11.4]} 39. Qf4 {[%clk 0:00:23.2]} 39... Qf1 {[%clk 0:00:11.2]} 40.
Qg4+ {[%clk 0:00:18.9]} 40... Kf8 {[%clk 0:00:09.8]} 41. Qc8+ {[%clk 0:00:18.2]}
41... Kg7 {[%clk 0:00:10.1]} 42. Qg4+ {[%clk 0:00:18.4]} 42... Bg6 {[%clk
0:00:07.8]} 43. Qe2 {[%clk 0:00:17.7]} 43... Qa1 {[%clk 0:00:05.5]} 44. Qxc4
{[%clk 0:00:17.3]} 44... Qb2+ {[%clk 0:00:04.9]} 45. Ke1 {[%clk 0:00:17.1]}
45... Qc1+ {[%clk 0:00:04.6]} 46. Ke2 {[%clk 0:00:17]} 46... Qc2+ {[%clk
0:00:03.4]} 47. Kf3 {[%clk 0:00:15.3]} 47... Qf5+ {[%clk 0:00:02.7]} 48. Kg2
{[%clk 0:00:15]} 48... Qc2 {[%clk 0:00:01.7]} 49. Qd4 {[%clk 0:00:15.3]} 1-0